Cogmind - Beta 16 @@@ ROGUE MODE // 2025.12.27 @ 01:01:31 Player: tritri Result: Self-destructed Performance ------------- Evolutions (2) 1000 Regions Visited (4) 800 Robots Destroyed (22) 110 Value Destroyed (464) 464 Prototype IDs (0) 0 Alien Tech Used (0) 0 Bonus (120) 120 TOTAL SCORE: 2494 Bonus ------- Follower Combat Kills 120 Cogmind --------- Core Integrity 550/550 Matter 292/300 Energy 125/125 System Corruption 0% Temperature Cool (0) Movement Treading (160) Location -8/Materials Parts ------- > --- POWER (1) -------- Light Ion Engine (fused) > --- PROPULSION (4) --- Light Treads Light Treads > --- UTILITY (4) ------ Large Storage Unit Signal Interpreter > --- WEAPON (2) ------- Assault Rifle > --- INVENTORY (15) --- Flight Unit Flight Unit Flight Unit Scrap Shield Hacking Suite Grenade Launcher Datajack Mining Laser Mining Laser Mining Laser Peak State ------------ > --- POWER ------------ Light Ion Engine > --- PROPULSION ------- Light Treads Light Treads > --- UTILITY ---------- Large Storage Unit Signal Interpreter > --- WEAPON ----------- Assault Rifle Assault Rifle > --- INVENTORY -------- Flight Unit Flight Unit Flight Unit Hacking Suite Grenade Launcher Datajack Mining Laser Mining Laser Mining Laser [Rating: 8] Favorites ----------- Power Light Ion Engine Engine Light Ion Engine Propulsion Light Treads Treads Light Treads Utility Large Storage Unit Storage Large Storage Unit Processor Signal Interpreter Weapon Assault Rifle Ballistic Gun Assault Rifle Build | -11 -10 -10 -10 -8 ------- Run | Yrd Mat Min Sub Mat Slots Evolved 4 | . . . . 4 Power . | . . . . . Propulsion 2 | . . . . 2 Utility 2 | . . . . 2 Weapon . | . . . . . Parts Attached 10 | 5 4 . 1 . Power 2 | 1 . . 1 . Engine 2 | 1 . . 1 . Core . | . . . . . Reactor . | . . . . . Propulsion 2 | 2 . . . . Treads 2 | 2 . . . . Leg . | . . . . . Wheel . | . . . . . Hover . | . . . . . Flight . | . . . . . Utility 4 | 1 3 . . . Device . | . . . . . Storage 2 | 1 1 . . . Processor 2 | . 2 . . . Hackware . | . . . . . Protection . | . . . . . Artifact . | . . . . . Weapon 2 | 1 1 . . . Energy Gun . | . . . . . Energy Cannon . | . . . . . Ballistic Gun 2 | 1 1 . . . Ballistic Cannon . | . . . . . Launcher . | . . . . . Special Weapon . | . . . . . Impact Weapon . | . . . . . Slashing Weapon . | . . . . . Piercing Weapon . | . . . . . Special Melee Weapon . | . . . . . Unidentified Prototypes . | . . . . . Parts Lost 3 | . 2 . 1 . Power 1 | . 1 . . . Propulsion . | . . . . . Utility 1 | . 1 . . . Weapon 1 | . . . 1 . Highest Loss Streak 1 | . 1 . 1 . To Critical Strikes . | . . . . . Average Backups 7 | . 4 9 10 . Power . | . 1 1 . . Propulsion 2 | . 1 2 3 . Utility 1 | . . 1 1 . Weapon 2 | . . 4 4 . Tool/Special . | . . . . . Unused Backups 7 | . . . . 7 Power . | . . . . . Propulsion 3 | . . . . 3 Utility 2 | . . . . 2 Weapon 1 | . . . . 1 Tool/Special 1 | . . . . 1 Average Slot Usage (%) 85 | . 85 85 86 . Engine 9 | . 12 . 13 . Treads 28 | . 28 28 28 . Storage 14 | . 14 14 14 . Processor 10 | . 5 14 14 . Ballistic Gun 22 | . 24 28 16 . Peak Build Rating 8 | 5 7 7 8 . Average Rating 6 | 3 6 7 7 . On Entrance 5 | . 5 7 7 7 Avg Prop Armor Cover (%) . | . . . . . Naked Turns . | . . . . . Heaviest Build 30 | 10 30 24 27 . Greatest Support 40 | 40 40 40 40 . Greatest Overweight (x) . | . . . . . Average Overweight (x) . | . . . . . Largest Inventory Capacity 15 | 8 15 15 15 . Average Capacity 14 | 6 13 15 15 . Most Carried 11 | 1 9 10 11 . Average Carried 7 | . 4 9 10 . Final Capacity 15 | 8 15 15 15 15 Final Carried 11 | 1 9 10 11 11 Class Distribution -------------------- 100% | Mutant Dominant Class ---------------- Mutant | -10/Materials Mutant | -10/Mines Mutant | -10/Subcaves Mutant | -8/Materials Resources | -11 -10 -10 -10 -8 ----------- Run | Yrd Mat Min Sub Mat Matter Collected 579 | 245 272 36 26 . Remotely . | . . . . . Salvage Created 629 | . 587 42 . . Parts 48 | . 44 4 . . Haulers Intercepted 1 | . 1 . . . Recyclers Shooed 2 | . 2 . . . Parts Field Recycled . | . . . . . Retrieved Matter . | . . . . . Parts Self-Destructed 3 | . . . 3 . Prevented . | . . . . . Parts Restored . | . . . . . Kills | -11 -10 -10 -10 -8 ------- Run | Yrd Mat Min Sub Mat Combat Hostiles Destroyed 17 | . 14 3 . . Guns 17 | . 14 3 . . Classes Destroyed 7 | . 7 . . . Worker 1 | . 1 . . . Hauler 1 | . 1 . . . Recycler 1 | . 1 . . . Operator 1 | . 1 . . . Watcher 1 | . 1 . . . Swarmer 7 | . 4 3 . . Grunt 10 | . 10 . . . Best Kill Streak 4 | . 4 3 . . Combat Bots Only 4 | . 4 3 . . Max Kills in Single Turn 1 | . 1 1 . . Gunslinging . | . . . . . Exploded . | . . . . . Melee . | . . . . . Uniques/NPCs Destroyed . | . . . . . Combat | -11 -10 -10 -10 -8 -------- Run | Yrd Mat Min Sub Mat Hostile Shots Fired 81 | . 62 17 2 . Missed 24 | . 16 7 1 . Hits 57 | . 46 10 1 . Projectile 57 | . 46 10 1 . Critical Strikes 1 | . 1 . . . Damage Taken 580 | . 458 82 40 . Core 144 | . 118 7 19 . Absorbed by Shields . | . . . . . Core Remaining (%) 71 | 100 . . 42 . Volleys Fired 49 | . 45 4 . . Largest 2 | . 2 2 . . Hottest 40 | . 40 40 . . Shots Fired 91 | . 83 8 . . Gun 91 | . 83 8 . . Cannon . | . . . . . Launcher . | . . . . . Special . | . . . . . Kinetic 91 | . 83 8 . . Thermal . | . . . . . Explosive . | . . . . . Electromagnetic . | . . . . . Robot Hit Streak 10 | . 10 2 . . Robot Miss Streak 4 | . 4 1 . . Penetration Max . | . . . . . Secondary Targets . | . . . . . Shots Hit Robots 57 | . 53 4 . . Core Hits 33 | . 30 3 . . Critical Kills . | . . . . . Critical Parts Destroyed 1 | . . 1 . . Critical Strikes 1 | . . 1 . . Destroy 1 | . . 1 . . Melee Attacks . | . . . . . Impact . | . . . . . Slashing . | . . . . . Piercing . | . . . . . Sneak Attacks . | . . . . . Combat Hostiles . | . . . . . Follow-up Attacks . | . . . . . Damage Inflicted 817 | . 735 82 . . Guns 768 | . 709 59 . . Cannons . | . . . . . Explosions . | . . . . . Melee . | . . . . . Ramming 49 | . 26 23 . . Kinetic 768 | . 709 59 . . Thermal . | . . . . . Explosive . | . . . . . Electromagnetic . | . . . . . Impact . | . . . . . Slashing . | . . . . . Piercing . | . . . . . Highest Corruption 1 | . 1 1 1 . Average Corruption 1 | . 1 1 1 . Corruption Purged . | . . . . . Corruption Blocked . | . . . . . Effects 17 | . 4 4 9 . Message Errors 6 | . 1 2 3 . Matter Fused 4 | . . 2 2 . Heat Flow Errors 1 | . . . 1 . Energy Discharges 2 | . 1 . 1 . Parts Fused 1 | . . . 1 . Data Loss (minor) 2 | . 1 . 1 . Misfires 1 | . 1 . . . Overload Shots . | . . . . . Overflow Damage . | . . . . . Projectiles . | . . . . . Explosions . | . . . . . Melee . | . . . . . Knockbacks 1 | . . 1 . . Impact 1 | . . 1 . . Kinetic . | . . . . . Secondary . | . . . . . Self-Inflicted Damage . | . . . . . Shots . | . . . . . Rammed 13 | . 6 7 . . Targets Rammed 15 | . 8 7 . . Kicked . | . . . . . Crushed 2 | . 2 . . . Highest Temperature 115 | . 20 . 115 . Average Temperature 22 | . 6 . 75 . Received Heat Transfer 195 | . 180 . 15 . Siege Activations . | . . . . . Martial Activations . | . . . . . Shielding Activations . | . . . . . Robots Disrupted . | . . . . . Combat Hostiles . | . . . . . Robots Corrupted . | . . . . . Combat Hostiles . | . . . . . Parts Fried . | . . . . . Impact Corruptions . | . . . . . Robots Melted . | . . . . . Combat Hostiles . | . . . . . Parts Melted . | . . . . . Heat Transferred . | . . . . . Parts Sabotaged . | . . . . . Parts Stolen . | . . . . . Parts Stripped . | . . . . . Power Chain Reactions . | . . . . . Alert | -11 -10 -10 -10 -8 ------- Run | Yrd Mat Min Sub Mat Maximum Alert Level . | . . . . . Low Security (%) 100 | 100 100 100 . . Level 1 . | . . . . . Level 2 . | . . . . . Level 3 . | . . . . . Level 4 . | . . . . . Level 5 . | . . . . . High Security . | . . . . . Max Security . | . . . . . Peak Influence 113 | . 113 111 . . Initial 41 | . . 41 . . Average 20 | . 27 13 . . Influence Increases 465 | . 395 70 . . Destroy 0b10 Robot/C 340 | . 280 60 . . Destroy 0b10 Robot/NC 25 | . 25 . . . Destroy Leader 84 | . 74 10 . . Destroy Structure 1 | . 1 . . . Lose Combat Pursuer 15 | . 15 . . . Influence Decreases 465 | . 288 177 . . Entered New Map 66 | . . 66 . . Time Decay 379 | . 268 111 . . Lost Part 20 | . 20 . . . Squads Dispatched 5 | . 5 . . . Investigation 1 | . 1 . . . Extermination . | . . . . . Reinforcement 4 | . 4 . . . Assault . | . . . . . Garrison . | . . . . . Intercept . | . . . . . Searches Triggered . | . . . . . Construction Impeded . | . . . . . Haulers Reinforced . | . . . . . Active Scanning Responses . | . . . . . Cargo Convoy Interrupts . | . . . . . Stealth | -11 -10 -10 -10 -8 --------- Run | Yrd Mat Min Sub Mat Distress Signals 4 | . 4 . . . Communications Jammed . | . . . . . Distress Signals . | . . . . . Times Spotted 41 | . 28 3 10 . Peak Tracking Total 9 | . 5 3 9 . Tactical Retreats 1 | . 1 . . . Traps | -11 -10 -10 -10 -8 ------- Run | Yrd Mat Min Sub Mat Traps Triggered 2 | . 2 . . . Indirectly . | . . . . . Trap Hack Attempts . | . . . . . Triggered . | . . . . . Disarmed . | . . . . . Reprogrammed . | . . . . . Reused . | . . . . . Traps Extracted . | . . . . . Installed . | . . . . . Triggered . | . . . . . Machines | -11 -10 -10 -10 -8 ---------- Run | Yrd Mat Min Sub Mat Machines Disabled . | . . . . . Max in Single Turn . | . . . . . Machines Repaired . | . . . . . Machines Dismantled . | . . . . . Machines Sabotaged . | . . . . . Overloaded Fab Kills . | . . . . . Hacking | -11 -10 -10 -10 -8 --------- Run | Yrd Mat Min Sub Mat Machines Accessed 2 | . 1 1 . . Terminals 1 | . 1 . . . Fabricators . | . . . . . Repair Stations . | . . . . . Recycling Units . | . . . . . Scanalyzers . | . . . . . Garrison Access . | . . . . . Total Hacks 3 | . 2 1 . . Successful 2 | . 1 1 . . Failed 1 | . 1 . . . Catastrophic . | . . . . . Database Lockouts . | . . . . . Manual . | . . . . . Terminals 2 | . 2 . . . Fabricators . | . . . . . Repair Stations . | . . . . . Recycling Units . | . . . . . Scanalyzers . | . . . . . Garrison Access . | . . . . . Terminal Hacks 2 | . 1 1 . . Open Door 1 | . . 1 . . Alert Level 1 | . 1 . . . Fabricator Hacks . | . . . . . Repair Station Hacks . | . . . . . Recycling Unit Hacks . | . . . . . Scanalyzer . | . . . . . Garrison Access Hacks . | . . . . . Unauthorized Hacks . | . . . . . Terminals . | . . . . . Fabricators . | . . . . . Repair Stations . | . . . . . Recycling Units . | . . . . . Scanalyzers . | . . . . . Garrison Access . | . . . . . Data Cores Recovered 1 | . 1 . . . Used . | . . . . . Hacking Detections . | . . . . . Full Trace Events . | . . . . . Feedback Events . | . . . . . Feedback Blocked . | . . . . . Robot Schematics Acquired . | . . . . . Robots Built . | . . . . . Authchips . | . . . . . Time . | . . . . . Total Robot Build Rating . | . . . . . Part Schematics Acquired . | . . . . . Parts Built . | . . . . . Authchips . | . . . . . Time . | . . . . . Total Part Build Rating . | . . . . . Part Studies Acquired . | . . . . . Parts Repaired . | . . . . . Time . | . . . . . Parts Recycled . | . . . . . Recycled Matter . | . . . . . Retrieved Matter . | . . . . . Retrieved Components . | . . . . . Parts Scanalyzed . | . . . . . Part Schematics Acquired . | . . . . . Parts Damaged . | . . . . . Bothacking | -11 -10 -10 -10 -8 ------------ Run | Yrd Mat Min Sub Mat Used RIF Installer . | . . . . . Robots Hacked . | . . . . . Non-combat . | . . . . . Combat . | . . . . . Robot Hacks Applied . | . . . . . Relay Couplers Released . | . . . . . Fabnet Peak Effective % . | . . . . . Robots Rewired . | . . . . . Allies Hacked . | . . . . . Hacks Repelled . | . . . . . Allies | -11 -10 -10 -10 -8 -------- Run | Yrd Mat Min Sub Mat Total Allies 3 | . . 3 . . Largest Group 3 | . . 3 3 . Highest-Rated Group 40 | . . 40 40 . Highest-Rated Ally 16 | . . 16 16 . Total Orders . | . . . . . Ally Attacks 23 | . . . 23 . Total Damage 292 | . . . 292 . Kills 5 | . . . 5 . Allies Corrupted . | . . . . . Allies Melted . | . . . . . Intel | -11 -10 -10 -10 -8 ------- Run | Yrd Mat Min Sub Mat Active Infowar (turns) . | . . . . . Robot Analysis Total . | . . . . . Derelict Logs Recovered 3 | . . 1 2 . Drone Launches . | . . . . . Drone Recoveries . | . . . . . Exploration | -11 -10 -10 -10 -8 ------------- Run | Yrd Mat Min Sub Mat Turns Passed 3139 | 89 1150 893 1007 . Spaces Moved 1839 | 56 611 543 629 . Core 7 | 7 . . . . Treads 1832 | 49 611 543 629 . Legs . | . . . . . Wheels . | . . . . . Hover . | . . . . . Flight . | . . . . . Fastest Speed 50 | 50 160 160 160 . Average Speed 159 | 146 160 160 160 . Slowest Speed 160 | 160 160 160 160 . Overloaded Moves . | . . . . . Propulsion Burnouts . | . . . . . Robots Hopped . | . . . . . Potential Cave-ins . | . . . . . Cave-ins Triggered . | . . . . . Exploration Rate (%) 38 | 4 75 89 21 1 Regions Visited 4 Branch Regions 2 Pre-discovered Areas 2 | . . . 2 . Known Exits Taken 3 | . 1 1 1 . Unknown Exits Taken 1 | 1 . . . . Scrap Searched . | . . . . . Spaces Dug . | . . . . . Terrain Destroyed . | . . . . . Melee . | . . . . . Projectile . | . . . . . AOE . | . . . . . Terrain Rammed . | . . . . . Walls Destroyed . | . . . . . Machines Disabled . | . . . . . Actions | -11 -10 -10 -10 -8 --------- Run | Yrd Mat Min Sub Mat Total 1942 | 61 696 555 630 . Wait 20 | . 19 1 . . Move 1835 | 55 610 542 628 . Hop . | . . . . . Pick Up 11 | 1 8 1 1 . Fast Attach 9 | 5 4 . . . Attach 1 | . . . 1 . Detach 1 | . 1 . . . Swap . | . . . . . Drop 1 | . 1 . . . Fire 49 | . 45 4 . . Melee . | . . . . . Ram . | . . . . . Kick . | . . . . . Crush 15 | . 8 7 . . Escape Stasis . | . . . . . Rewire . | . . . . . Trap . | . . . . . Miscellaneous . | . . . . . Route ------- -11/Scrapyard -10/Materials (discovered 3 exits: *Mat x2 / *Min) -10/Mines (discovered 3 exits: *Mat x2 / *Sub) -10/Subcaves -8/Materials History --------- Turn | Location | Event 8 | -11/Scrapyard | Discovered new exit (range 16) 90 | -11/Scrapyard | Entered Materials 300 | -10/Materials | Build established: Mutant 746 | -10/Materials | Discovered new exit (range 12) 1117 | -10/Materials | Discovered new exit (range 8) 1191 | -10/Materials | Discovered new exit (range 11) 1221 | -10/Materials | Identified exit to Mines 1240 | -10/Materials | Entered Mines 1283 | -10/Mines | Learned Materials terminal intel 1285 | -10/Mines | Met a Derelict bent on vengeance 1605 | -10/Mines | Discovered new exit (range 5) 1611 | -10/Mines | Identified exit to Materials 1622 | -10/Mines | Assisted by bots powering up and referring to "LRC-V3" 1874 | -10/Mines | Discovered exit to Materials (range 10) 2071 | -10/Mines | Found the Drone Emporium 2118 | -10/Mines | Discovered new exit (range 6) 2128 | -10/Mines | Identified exit to Subcaves 2133 | -10/Mines | Entered Subcaves 2133 | -10/Subcaves | Accompanied by 3 allies 2134 | -10/Subcaves | Approached by a straggling Scientist 2268 | -10/Subcaves | Ambushed by swarm of Subdwellers 2271 | -10/Subcaves | Ambushed by Subdwellers from Twisted Machinery 2271 | -10/Subcaves | Ambushed by Subdwellers from Twisted Machinery 2273 | -10/Subcaves | Ambushed by Subdwellers from Twisted Machinery 2273 | -10/Subcaves | Ambushed by Subdwellers from Twisted Machinery 2281 | -10/Subcaves | Core integrity fell below 50% 2290 | -10/Subcaves | Learned location of Zion (-6) 2290 | -10/Subcaves | Met a Zionite searching for "candidates" 2295 | -10/Subcaves | Learned Materials emergency access door positions 2325 | -10/Subcaves | Lost 4 allies 2349 | -10/Subcaves | Shifting Twisted Machinery released Sub. Monowheel 2884 | -10/Subcaves | Learned location of Mines (-8) 2979 | -10/Subcaves | Discovered new exit (range 15) 3000 | -10/Subcaves | Shifting Twisted Machinery released Scrap Shield 3001 | -10/Subcaves | Identified exit to Materials 3002 | -10/Subcaves | Shifting Twisted Machinery released Battle Cannon 3140 | -10/Subcaves | Entered Materials 3140 | -8/Materials | Accompanied by 1 ally 3140 | -8/Materials | Evolved 4 slots: Propulsion x2, Utility x2 3140 | -8/Materials | Self-destructed Last Messages --------------- 02642_ System corrupted: Matter fused (-8). 02665_ Acquired 8 matter. 02793_ G VUAHOMG%MF AW Y&R#413 02808_ P#MEITLWS5M>IFPRMTNUH3I43 > LWY>9D 02824_ Subatomizers dissect the Battle Rifle. 02851_ Subatomizers dissect the Wheel. 02884_ Acquired derelict log, extracted data. World map updated: -8/Mines. 02979_ EXIT=FOUND 02993_ System corrupted: Heat flow error (+153). Scrap Shield falls loose from the Twisted Machinery. 03001_ EXIT=IDENTIFIED: MATERIALS Battle Cannon falls loose from the Twisted Machinery. 03054_ System corrupted: Matter fused (-8). 03078_ System corrupted: Energy discharge (-31). PARAMETERS=PROPULSION+2,UTILITY+2 LOCATION=MATERIALS GOAL=ESCAPE Map ----- +----------------------------------------------------+ | ?????????????????????????????????????????????????? | | ?????????????????????????????????????????????????? | | ?????????????????????????????????????????????????? | | ?????????????????????????????????????????????????? | | ?????????????????????????????????????????????????? | | ?????????????????????????????????????????????????? | | ?????????????????????????????????????????????????? | | ?????????????????????????????????????????????????? | | ?????????????????????????????????????????????????? | | ?????????????????????????????????????????????????? | | ???????????????????????? " ??????????????????????? | | ???????????????????????? ??????????????????????? | | ???????????????????????? ??????????????????????? | | ???????????????????????# #?????????????????????? | | ???????????????????????# #?????????????????????? | | ???????????????????????# #?????????????????????? | | ???????????????????????# #?????????????????????? | | ???????????????????????# #?????????????????????? | | ???????????????????????# #?????????????????????? | | ???????????????????????# o #?????????????????????? | | ???????????????????????# #?????????????????????? | | ???????????????????????# #?????????????????????? | | ???????????????????????# #?????????????????????? | | ???????????????????????+ +?????????????????????? | | ???????????????????????#g #?????????????????????? | | ???????????????????????# @ #?????????????????????? | | ???????????????????????# #?????????????????????? | | ???????????????????????#####?????????????????????? | | ?????????????????????????????????????????????????? | | ?????????????????????????????????????????????????? | | ?????????????????????????????????????????????????? | | ?????????????????????????????????????????????????? | | ?????????????????????????????????????????????????? | | ?????????????????????????????????????????????????? | | ?????????????????????????????????????????????????? | | ?????????????????????????????????????????????????? | | ?????????????????????????????????????????????????? | | | | | | | | | | | | | | | | | | | | | | | | | | | +----------------------------------------------------+ Best States ------------- Heat Dissipation 25 Energy Generation 10 Energy Capacity 125 Matter Stores 300 Matter Capacity 300 Sight Range 16 Terrain Scan Density 10 Evasion (%) 40 Targeting Accuracy 5 Recoil Reduction 2 Item Schematics ----------------- None Robot Schematics ------------------ None Fabricated ------------ Nothing Repaired ---------- Nothing Studied --------- None Alien Tech Used ----------------- None Achievements -------------- None Challenges ------------ None Game ------ Seed ForcePhasingCleaver Manual? 0 Play Time 00:16:00 Cumulative 2.4 hours Start 2025.12.27 @ 00:43:16 End 2025.12.27 @ 01:01:31 Sessions 1 Manual Loads 0 Difficulty Rogue Special Mode None Game No. 7 Rogue 7 Adventurer 0 Explorer 0 Win Type - Total 0 Types 0/0/0/0/0/0/0/0/0/0 Lore% 2 Gallery% 4 Achievement% 6 Wizard Run 0 Options --------- Layout 1 ASCII 0 Keyboard 1 Movement Vi Keybinds 0 Fullscreen 1 Font 24/Smallcaps Map View 50x35 Zoom Use 0% Tactical HUD 1 Map Filters NONE Filters NONE Steam 1 RUN: 50dce39e-32d3-4081-9375-5a61c30bc120